bitfinex-derivatives/quotes_SOLF0:USTF0_20250328
["timestamp","ask_amount","ask_price","bid_price","bid_amount"]
[1743122300798,0.05409623,137.05,137.04,7.2991]
[1743122301294,0.05409623,137.05,137.03,0.04686494]
[1743122302495,7.35279623,137.05,137.03,0.04686494]
[1743122302899,0.05409623,137.05,137.03,0.04686494]
[1743122303094,7.2991,137.04,137.03,0.04686494]
[1743122303293,0.05409623,137.05,137.03,0.04686494]
[1743122303693,0.05409623,137.05,136.98,40.38158804]
[1743122303891,20.94187796,137.04,136.98,40.38158804]
[1743122304093,27.18,137.03,136.98,40.38158804]
[1743122304691,27.18,137.03,136.99,0.05185243]
[1743122304892,0.05198512,137.02,136.99,0.05185243]
[1743122306102,7.3013,137.0,136.99,0.05185243]
[1743122309898,7.3013,137.0,136.99,5.243e-05]
[1743122310296,34.4013,137.0,136.99,5.243e-05]
[1743122318297,27.1,137.0,136.99,5.243e-05]
[1743122318606,0.05198512,137.02,137.01,7.3007]
[1743122318802,26.98,137.07,137.0,3.6536]
[1743122319007,34.2778,137.07,137.0,3.6536]
[1743122319203,34.2778,137.07,137.03,7.2994]
[1743122319405,34.2778,137.07,137.0,3.6536]
[1743122319809,7.2971,137.08,137.04,7.2987]
[1743122320009,0.05540109,137.05,137.04,7.2987]
[1743122321305,7.35430109,137.05,137.02,0.05426111]
[1743122321502,34.35430109,137.05,137.02,0.05426111]
[1743122321713,27.05540109,137.05,137.02,0.05426111]
[1743122321913,7.2997,137.03,137.02,0.05426111]
[1743122322612,20.94187796,137.04,136.95,37.09539701]
[1743122323010,7.3004,137.02,136.98,7.302]
[1743122323208,27.02,137.04,136.96,20.94187796]
[1743122323613,0.04678072,137.01,136.99,0.04908551]
[1743122324214,7.2972,137.08,137.0,20.94187796]
[1743122324411,20.94187796,137.1,137.01,27.04]
[1743122324618,7.2969,137.09,137.04,7.2989]
[1743122324909,20.94187796,137.12,137.02,20.94187796]
[1743122325113,0.05119277,137.08,137.07,7.2971]
[1743122325513,0.05562781,137.09,137.06,20.99368255]
[1743122325817,27.04,137.14,137.07,27.04]
[1743122326309,27.04,137.14,137.08,7.2966]
[1743122326818,0.04885488,137.12,137.1,0.0472192]
[1743122327012,7.2947,137.13,137.1,0.0472192]
[1743122327213,129.79988793,137.19,137.1,55.42469716]
[1743122327517,20.94187796,137.17,137.1,27.14]
[1743122327713,48.10187796,137.17,137.08,20.94187796]
[1743122327909,48.10187796,137.17,137.09,27.16]
[1743122328112,27.16,137.17,137.09,27.16]
[1743122328307,0.05026819,137.14,137.12,0.0498773]
[1743122329217,0.05026819,137.14,137.12,7.3443773]
[1743122330320,0.05026819,137.14,137.12,0.0498773]
[1743122333118,7.2943,137.13,137.12,0.0498773]
[1743122333323,0.05026819,137.14,137.12,0.0498773]
[1743122333518,7.34426819,137.14,137.12,0.0498773]
[1743122333717,0.05026819,137.14,137.12,0.0498773]
[1743122336421,7.2943,137.13,137.12,0.0498773]
[1743122338222,7.2943,137.13,137.12,7.73e-05]
[1743122340222,34.40416819,137.14,137.12,7.73e-05]
[1743122340423,27.11026819,137.14,137.12,7.73e-05]
[1743122341619,0.05026819,137.14,137.12,7.73e-05]
[1743122342629,7.34426819,137.14,137.12,7.73e-05]
[1743122344525,0.05026819,137.14,137.12,7.73e-05]
[1743122345935,27.0,137.2,137.12,20.94195526]
[1743122346428,7.2916,137.19,137.15,7.2931]
[1743122346620,20.94187796,137.22,137.12,20.94187796]
[1743122346825,27.0,137.21,137.12,20.94187796]
[1743122347022,7.2921,137.18,137.12,20.94187796]
[1743122347227,7.34479617,137.18,137.15,0.04646266]
[1743122347423,0.05269617,137.18,137.15,0.04646266]
[1743122347631,7.2927,137.16,137.15,0.04646266]
[1743122352722,7.2927,137.16,137.15,6.266e-05]
[1743122352928,28.23457796,137.16,137.15,6.266e-05]
[1743122358939,20.66374038,137.16,137.15,6.266e-05]
[1743122361241,7.2927,137.16,137.15,6.266e-05]
[1743122367735,20.66374038,137.16,137.15,6.266e-05]
[1743122367932,7.2959,137.1,137.08,23.46643739]
[1743122368943,7.2965,137.09,137.08,23.46643739]
[1743122369140,7.2965,137.09,137.08,23.5166538]
[1743122369336,0.05590583,137.1,137.08,23.5166538]
[1743122369737,13.37104038,137.15,137.08,23.5166538]
[1743122369936,13.37104038,137.15,137.11,13.37104038]
[1743122370137,7.2945,137.13,137.11,13.37104038]
[1743122370646,7.2949,137.12,137.11,13.37104038]
[1743122370841,7.2949,137.12,137.11,0.04628843]
[1743122371037,0.05179848,137.13,137.11,0.04628843]
[1743122371537,7.34639848,137.13,137.11,0.04628843]
[1743122377250,40.05104038,137.19,137.11,40.09732881]
[1743122377447,40.05104038,137.19,137.13,13.37104038]
[1743122377749,7.2926,137.17,137.13,20.66524038]
[1743122378450,0.0532991,137.16,137.14,0.04855376]
[1743122379044,7.2938,137.15,137.14,0.04855376]
[1743122379344,0.0532991,137.16,137.14,0.04855376]
[1743122379545,7.3463991,137.16,137.14,0.04855376]
[1743122379751,0.0532991,137.16,137.14,0.04855376]
[1743122379950,7.2933,137.15,137.14,0.04855376]
[1743122383350,0.0532991,137.16,137.14,0.04855376]
[1743122383554,0.0532991,137.16,137.14,13.41959414]
[1743122384849,0.0532991,137.16,137.14,20.71329414]
[1743122385359,0.0532991,137.16,137.15,7.2933]
[1743122386056,26.64,137.2,137.15,7.2933]
[1743122386260,26.64,137.2,137.16,13.37104038]
[1743122386460,7.2922,137.17,137.16,13.37104038]
[1743122387450,0.05265484,137.18,137.14,13.41959414]
[1743122387651,0.05265484,137.18,137.14,40.05959414]
[1743122388363,7.34465484,137.18,137.15,7.2932]
[1743122389161,7.2922,137.17,137.15,7.2932]
[1743122389362,7.2922,137.17,137.14,47.35309414]
[1743122389662,0.05265484,137.18,137.14,40.05959414]
[1743122390554,0.05265484,137.18,137.15,7.293]
[1743122390755,0.05265484,137.18,137.16,13.37104038]
[1743122391055,7.2903,137.21,137.16,13.37104038]
[1743122391357,7.2903,137.21,137.18,13.37104038]
[1743122391554,7.2903,137.21,137.18,20.66244038]
[1743122391755,7.2898,137.22,137.18,13.37104038]
[1743122392261,0.05554854,137.21,137.19,0.0520641]
[1743122392562,0.05554854,137.21,137.19,3.5905641]
[1743122392761,0.05554854,137.21,137.2,7.2906]
[1743122393162,0.05554854,137.21,137.2,20.66164038]
[1743122393463,13.37104038,137.25,137.2,13.37104038]
[1743122393962,13.37104038,137.25,137.2,20.66144038]
[1743122394163,13.37104038,137.25,137.2,13.37104038]
[1743122394362,0.04748871,137.24,137.2,13.37104038]
[1743122394561,13.37104038,137.23,137.19,3.5905641]
[1743122395768,7.2906,137.2,137.19,0.0520641]
[1743122401666,20.71513806,137.21,137.19,0.0520641]
[1743122401870,7.34409768,137.21,137.19,0.0520641]
[1743122402469,0.05379768,137.21,137.19,13.42310448]
[1743122403070,0.05379768,137.21,137.19,20.71390448]
[1743122403875,0.05379768,137.21,137.19,13.42310448]
[1743122404375,7.2906,137.2,137.19,13.42310448]
[1743122404567,0.05379768,137.21,137.19,13.42310448]
[1743122404968,7.34419768,137.21,137.19,13.42310448]
[1743122405273,0.05379768,137.21,137.19,13.42310448]
[1743122405775,0.05379768,137.21,137.19,39.98310448]
[1743122405964,0.05379768,137.21,137.2,7.2906]
[1743122406675,7.2887,137.24,137.21,20.66084038]
[1743122407281,7.2891,137.23,137.21,13.37104038]
[1743122407675,7.33859478,137.23,137.21,13.41954402]
[1743122408173,7.2896,137.22,137.21,0.04850364]
[1743122408378,20.66064038,137.22,137.21,0.04850364]
[1743122411373,0.04949478,137.23,137.21,0.04850364]
[1743122412086,7.2896,137.22,137.21,0.04850364]
[1743122413191,26.60949478,137.23,137.21,0.04850364]
[1743122413686,33.89859478,137.23,137.21,0.04850364]
[1743122414487,7.2896,137.22,137.21,0.04850364]
[1743122414684,26.60949478,137.23,137.21,0.04850364]
[1743122417888,7.2896,137.22,137.21,0.04850364]
[1743122424196,47.26973516,137.23,137.21,0.04850364]
[1743122424398,33.89869478,137.23,137.21,0.04850364]
[1743122424700,7.33869478,137.23,137.21,0.04850364]
[1743122424904,0.04949478,137.23,137.21,0.04850364]
[1743122425198,0.04949478,137.23,137.21,7.33850364]
[1743122425701,7.33859478,137.23,137.21,7.33850364]
[1743122425903,7.33859478,137.23,137.21,0.04850364]
[1743122426200,0.04949478,137.23,137.21,0.04850364]
[1743122426405,7.2896,137.22,137.21,0.04850364]
[1743122429899,7.2921,137.18,137.15,3.4653]
[1743122430504,39.85104038,137.2,137.15,10.7583]
[1743122430704,39.85104038,137.2,137.15,3.4653]
[1743122431111,7.2921,137.18,137.16,0.05045796]
[1743122432811,0.05477877,137.19,137.16,0.05045796]
[1743122432812,7.2922,137.17,137.16,0.05045796]
[1743122436914,0.05477877,137.19,137.16,0.05045796]
[1743122437112,26.44,137.23,137.17,13.37104038]
[1743122437318,33.7292,137.23,137.2,13.37104038]
[1743122437715,7.2898,137.22,137.2,13.37104038]
[1743122438219,7.34001432,137.22,137.2,13.41776359]
[1743122438411,0.05021432,137.22,137.2,20.70826359]
[1743122438613,0.05021432,137.22,137.2,13.41776359]
[1743122439214,0.05021432,137.22,137.2,20.70806359]
[1743122440925,0.05021432,137.22,137.2,7.33702321]
[1743122443125,0.05021432,137.22,137.21,7.2901]
[1743122443518,0.05021432,137.22,137.2,0.04672321]
[1743122443725,0.05021432,137.22,137.2,7.33702321]
[1743122443925,0.05021432,137.22,137.2,0.04672321]
[1743122444221,0.05021432,137.22,137.21,7.2901]
[1743122444427,7.2883,137.25,137.2,26.42672321]
[1743122444725,7.2883,137.25,137.22,7.2895]
[1743122445229,6.9125,137.33,137.21,20.86028425]
[1743122445230,26.38,137.28,137.21,20.86028425]
[1743122445426,26.38,137.28,137.23,20.86028425]
[1743122445629,0.03395633,137.26,137.23,20.91055313]
[1743122446126,0.03395633,137.26,137.25,7.2877]
[1743122446626,33.6668,137.28,137.25,7.2877]
[1743122446627,7.2868,137.28,137.25,7.2877]
[1743122446824,7.2868,137.28,137.24,7.2882]
[1743122448228,7.2868,137.28,137.23,54.55945313]
[1743122448827,26.34,137.31,137.23,54.55945313]
[1743122449022,47.20028425,137.31,137.23,47.22028425]
[1743122449329,7.2869,137.27,137.26,0.05108486]
[1743122449527,26.36,137.31,137.26,0.05108486]
[1743122449828,26.36,137.32,137.26,0.05108486]
[1743122450629,26.36,137.34,137.26,26.41108486]
[1743122450927,26.36,137.34,137.26,26.36]
[1743122451223,7.2845,137.32,137.29,0.04972013]
[1743122451616,7.2843,137.32,137.29,0.04972013]
[1743122451816,26.36,137.34,137.29,0.04972013]
[1743122452222,7.2853,137.3,137.29,0.04972013]
[1743122455432,6.7271,137.4,137.29,0.04972013]
[1743122455633,20.86028425,137.37,137.28,3.35]
[1743122455826,20.86028425,137.35,137.33,4.492e-05]
[1743122456131,7.2832,137.34,137.33,4.492e-05]
[1743122459832,33.6032,137.34,137.33,4.492e-05]
[1743122460133,7.2832,137.34,137.33,4.492e-05]
[1743122460335,33.6032,137.34,137.33,4.492e-05]
[1743122464938,46.93901786,137.34,137.33,4.492e-05]
[1743122476638,7.287,137.27,137.24,10.791]
[1743122476837,13.33581786,137.29,137.24,16.83871786]
[1743122477238,7.2877,137.26,137.24,16.83871786]
[1743122477540,13.33581786,137.29,137.24,16.83871786]
[1743122477736,13.33581786,137.29,137.24,24.12721786]
[1743122477737,7.2872,137.27,137.24,24.12721786]
[1743122478045,7.2872,137.27,137.25,0.04775673]
[1743122479343,364.0,137.39,137.26,13.33581786]
[1743122479541,13.33581786,137.36,137.3,13.33581786]
[1743122480443,7.2843,137.32,137.3,13.33581786]
[1743122480746,26.22,137.34,137.32,0.05120592]
[1743122480947,7.2835,137.34,137.32,0.05120592]
[1743122481343,6.9148,137.38,137.32,0.05120592]
[1743122481649,7.2826,137.36,137.32,7.33530592]
[1743122482347,7.2826,137.36,137.33,7.2837]
[1743122482841,7.2826,137.36,137.32,0.05120592]
[1743122483046,7.2827,137.35,137.32,7.33510592]
[1743122483449,7.2827,137.35,137.32,0.05120592]
[1743122483747,7.2837,137.33,137.32,0.05120592]
[1743122484142,26.22,137.37,137.32,0.05120592]
[1743122484444,7.2834,137.34,137.32,0.05120592]
[1743122485748,26.18,137.36,137.32,0.05120592]
[1743122485946,26.2,137.41,137.33,20.82547642]
[1743122486149,11.66696116,137.43,137.33,20.82547642]
[1743122486150,20.82547642,137.43,137.35,7.2823]
[1743122486453,7.2812,137.38,137.36,0.05163659]
[1743122489257,26.18,137.42,137.36,7.33363659]
[1743122490657,7.2804,137.4,137.37,7.2815]
[1743122490955,26.18,137.42,137.36,0.05163659]
[1743122491961,28.01407642,137.45,137.36,0.05163659]
[1743122492163,26.16,137.44,137.36,3.6201]
[1743122492349,26.16,137.44,137.39,0.05563522]
[1743122492554,7.2798,137.41,137.39,0.05563522]
[1743122494164,7.28,137.4,137.39,0.05563522]
[1743122495554,7.2795,137.42,137.39,0.05563522]
[1743122495863,54.13407642,137.45,137.39,0.05563522]
[1743122496062,7.28,137.4,137.39,0.05563522]
[1743122496258,54.13407642,137.45,137.39,0.05563522]
[1743122497158,28.01407642,137.45,137.39,0.05563522]
[1743122497360,54.11407642,137.45,137.39,0.05563522]
[1743122497762,7.2798,137.41,137.39,0.05563522]
[1743122497965,46.92547642,137.45,137.39,0.05563522]
[1743122498154,7.2794,137.42,137.39,7.33613522]
[1743122498358,46.92547642,137.45,137.39,0.05563522]
[1743122499464,7.2793,137.42,137.39,7.33613522]
[1743122499661,26.08,137.45,137.39,0.05563522]
[1743122499864,26.08,137.45,137.39,7.33563522]
[1743122500063,26.08,137.45,137.39,0.05563522]
[1743122500468,7.2787,137.43,137.4,7.2799]
[1743122500869,26.08,137.45,137.39,0.05563522]
[1743122501666,7.2791,137.42,137.39,7.33583522]
[1743122502569,7.2791,137.42,137.4,7.28]
[1743122503765,7.2782,137.44,137.41,7.2794]
[1743122504071,39.39322562,137.45,137.39,13.36886084]
[1743122504257,7.2785,137.43,137.4,7.2796]
[1743122504463,7.2785,137.43,137.39,13.36886084]
[1743122504859,7.2785,137.43,137.4,7.2796]
[1743122506072,7.2785,137.43,137.41,7.2794]
[1743122506266,7.278,137.44,137.41,20.59262562]
[1743122506766,13.31322562,137.45,137.41,13.31322562]
[1743122506767,7.2785,137.43,137.41,13.31322562]
[1743122507666,7.2783,137.44,137.41,13.31322562]
[1743122507964,7.2783,137.44,137.41,20.59242562]
[1743122508365,7.2785,137.43,137.41,20.59242562]
[1743122508567,7.2785,137.43,137.41,13.31322562]
[1743122508773,26.04,137.46,137.41,13.31322562]
[1743122509166,7.2778,137.45,137.42,7.33178697]
[1743122511373,7.2779,137.44,137.42,0.05318697]
[1743122511573,13.31322562,137.47,137.42,0.05318697]
[1743122512272,7.2778,137.45,137.42,7.33198697]
[1743122512469,13.31322562,137.47,137.42,7.33198697]
[1743122512870,13.31322562,137.47,137.42,0.05318697]
[1743122513370,7.2777,137.45,137.42,7.33208697]
[1743122513772,13.31322562,137.47,137.42,7.33208697]
[1743122514774,7.2779,137.44,137.42,7.33208697]
[1743122515365,7.2776,137.45,137.42,7.33208697]
[1743122517881,7.2776,137.45,137.43,20.59152562]
[1743122518068,39.25322562,137.49,137.43,13.31322562]
[1743122518272,13.31322562,137.49,137.43,13.31322562]
[1743122519380,7.2771,137.46,137.43,20.59132562]
[1743122519578,7.2771,137.46,137.43,13.31322562]
[1743122519879,13.31322562,137.47,137.43,13.31322562]
[1743122520378,13.31322562,137.47,137.44,0.0484473]
[1743122520579,7.2778,137.45,137.44,0.0484473]
[1743122521278,20.59102562,137.45,137.44,0.0484473]
[1743122521583,20.59102562,137.45,137.44,4.73e-05]
[1743122522477,7.2805,137.39,137.36,13.31322562]
[1743122522981,7.2805,137.39,137.36,20.59502562]
[1743122523184,7.2805,137.39,137.36,30.69042263]
[1743122523480,7.2802,137.4,137.36,23.40862263]
[1743122523678,0.0491792,137.39,137.37,7.2814]
[1743122526278,0.0491792,137.39,137.38,13.31322562]
[1743122528185,7.3296792,137.39,137.38,13.31322562]
[1743122528488,0.0491792,137.39,137.38,13.31322562]
[1743122528989,0.0491792,137.39,137.38,20.59432562]
[1743122530188,0.0491792,137.39,137.38,13.31322562]
[1743122531791,0.0491792,137.39,137.38,20.59432562]
[1743122532092,0.0491792,137.39,137.38,13.31322562]
[1743122533698,7.3296792,137.39,137.38,13.31322562]
[1743122533997,0.0491792,137.39,137.38,13.31322562]
[1743122534999,0.0491792,137.39,137.38,20.59432562]
[1743122536899,0.0491792,137.39,137.38,13.31322562]
[1743122540698,0.0491792,137.39,137.38,20.59432562]
[1743122540900,0.0491792,137.39,137.38,13.31322562]
[1743122541196,0.0491792,137.39,137.36,0.04868288]
[1743122541504,13.36240482,137.39,137.36,0.04868288]
[1743122541804,7.2816,137.37,137.36,0.04868288]
[1743122548708,7.2816,137.37,137.34,20.59622562]
[1743122548709,7.2834,137.34,137.31,16.87242562]
[1743122548909,13.31322562,137.35,137.31,13.31322562]
[1743122549100,13.31322562,137.35,137.3,7.2851]
[1743122549506,7.284,137.33,137.3,7.2851]
[1743122550006,7.3395928,137.33,137.3,7.33836111]
[1743122552800,0.0555928,137.33,137.31,7.2847]
[1743122552996,0.0555928,137.33,137.3,0.05326111]
[1743122553409,7.3393928,137.33,137.3,7.33826111]
[1743122553604,0.0555928,137.33,137.3,0.05326111]
[1743122554799,0.0555928,137.33,137.31,7.2848]
[1743122556711,0.0555928,137.33,137.32,7.2842]
[1743122557014,25.92,137.38,137.31,13.31322562]
[1743122557209,7.2815,137.38,137.34,13.31322562]
[1743122557410,25.92,137.39,137.36,13.31322562]
[1743122558113,25.96226928,137.39,137.36,13.3659687]
[1743122558312,7.2814,137.38,137.36,13.3659687]
[1743122560919,7.2814,137.38,137.36,0.05274308]
[1743122561819,25.96226928,137.39,137.36,0.05274308]
[1743122562917,25.96226928,137.39,137.37,7.2816]
[1743122563715,25.96226928,137.39,137.38,7.2811]
[1743122564620,0.04226928,137.39,137.38,7.2811]
[1743122565320,0.04226928,137.39,137.36,13.3659687]
[1743122565620,0.04226928,137.39,137.38,13.31322562]
[1743122566017,0.04226928,137.39,137.38,20.59432562]
[1743122567428,0.04226928,137.39,137.36,13.3659687]
[1743122567626,0.04226928,137.39,137.36,0.05274308]
[1743122568218,7.2814,137.38,137.36,0.05274308]
[1743122569425,7.2816,137.37,137.36,0.05274308]
[1743122570628,20.59482562,137.37,137.36,0.05274308]
[1743122576827,7.2838,137.33,137.31,20.59782562]
[1743122577240,13.31322562,137.35,137.32,7.2842]
[1743122577737,7.2832,137.34,137.32,7.2842]
[1743122577940,7.2832,137.34,137.32,7.33459206]
[1743122578636,0.04812433,137.35,137.33,7.2836]
[1743122578837,0.04812433,137.35,137.32,0.05039206]
[1743122579138,7.33082433,137.35,137.32,7.33419206]
[1743122579336,0.04812433,137.35,137.33,13.31322562]
[1743122579634,33.1987,137.43,137.39,7.2805]
[1743122579841,25.92,137.44,137.39,20.59372562]
[1743122580138,25.92,137.44,137.39,13.31322562]
[1743122580441,33.1982,137.44,137.39,13.31322562]
[1743122580738,0.04688803,137.43,137.4,0.05193056]
[1743122581441,0.04688803,137.43,137.4,7.33163056]
[1743122581639,0.04688803,137.43,137.4,0.05193056]
[1743122581839,0.04688803,137.43,137.41,7.2794]
[1743122582243,0.04688803,137.43,137.4,0.05193056]
[1743122582436,0.04688803,137.43,137.41,7.2792]
[1743122584444,0.04688803,137.43,137.4,0.05193056]
[1743122584445,13.36011365,137.43,137.4,0.05193056]
[1743122584947,7.2795,137.41,137.4,0.05193056]
[1743122586549,20.59272562,137.41,137.4,0.05193056]
[1743122586844,7.2815,137.38,137.34,20.29092562]
[1743122587239,20.59412562,137.39,137.34,20.29092562]
[1743122587439,13.31322562,137.39,137.34,20.29092562]
[1743122588047,7.33613136,137.38,137.35,0.04991297]
[1743122589447,7.2816,137.37,137.35,0.04991297]
[1743122590648,7.2821,137.36,137.35,0.04991297]
[1743122596048,0.05503136,137.38,137.35,0.04991297]
[1743122596250,0.05503136,137.38,137.36,39.33322562]
[1743122596447,0.05503136,137.38,137.37,7.2816]
[1743122596852,7.2781,137.44,137.36,42.94972562]
[1743122597149,7.2781,137.44,137.39,20.59342562]
[1743122598045,0.04378723,137.43,137.4,0.05090911]
[1743122599151,7.32238723,137.43,137.4,0.05090911]
[1743122599451,0.04378723,137.43,137.4,0.05090911]
[1743122599651,0.04378723,137.43,137.41,7.2792]
[1743122600148,0.04378723,137.43,137.4,0.05090911]
[1743122600650,0.04378723,137.43,137.4,7.33060911]
[1743122601153,26.04,137.42,137.4,0.05090911]
[1743122602052,7.2795,137.41,137.4,0.05090911]
[1743122602252,26.04,137.42,137.4,0.05090911]
[1743122602752,33.3192,137.42,137.4,0.05090911]
[1743122603152,26.04,137.42,137.4,0.05090911]
[1743122603351,26.04,137.42,137.41,7.2795]
[1743122604652,26.04,137.42,137.4,0.05090911]
[1743122605153,7.2795,137.41,137.4,0.05090911]
[1743122612361,26.04,137.42,137.4,0.05090911]
[1743122612654,0.04378723,137.43,137.4,0.05090911]
[1743122612854,7.32238723,137.43,137.4,7.33060911]
[1743122613049,0.04378723,137.43,137.4,0.05090911]
[1743122613560,0.04378723,137.43,137.41,7.279]
[1743122613952,0.04378723,137.43,137.4,0.05090911]
[1743122614859,0.04378723,137.43,137.42,7.2789]
[1743122618862,0.04378723,137.43,137.42,20.58558276]
[1743122629361,0.04378723,137.43,137.4,26.01090911]
[1743122629561,0.04378723,137.43,137.4,13.35759187]
[1743122629969,7.32268723,137.43,137.4,13.35759187]
[1743122630670,7.32268723,137.43,137.4,20.63749187]
[1743122630870,7.2789,137.42,137.4,13.35759187]
[1743122631265,0.04378723,137.43,137.4,13.35759187]
[1743122631472,7.32248723,137.43,137.4,13.35759187]
[1743122632172,7.32248723,137.43,137.4,20.63719187]
[1743122632971,7.32248723,137.43,137.42,13.30668276]
[1743122633765,7.2795,137.42,137.4,13.35759187]
[1743122634079,0.04378723,137.43,137.4,20.63759187]
[1743122634470,7.32248723,137.43,137.4,20.63759187]
[1743122634762,0.04378723,137.43,137.41,7.2794]
[1743122634966,0.04378723,137.43,137.4,13.35759187]
[1743122635167,0.04378723,137.43,137.4,20.63729187]
[1743122635970,7.32228723,137.43,137.4,20.63729187]
[1743122640379,7.2795,137.41,137.4,9.11e-06]
[1743122640680,13.30668276,137.41,137.35,10.08227788]
[1743122640871,13.30668276,137.36,137.35,10.08227788]
[1743122641076,39.28668276,137.36,137.35,10.08227788]
[1743122641276,46.56878276,137.36,137.35,10.08227788]
[1743122642179,46.56878276,137.36,137.35,7.788e-05]
[1743122643280,7.2827,137.35,137.34,0.05018417]
[1743122649081,46.56898276,137.36,137.34,0.05018417]
[1743122649385,0.05127266,137.37,137.34,0.05018417]
[1743122649987,0.05127266,137.37,137.34,7.33318417]
[1743122650287,0.05127266,137.37,137.34,0.05018417]
[1743122650684,0.05127266,137.37,137.34,7.33308417]
[1743122652191,7.33287266,137.37,137.34,0.05018417]
[1743122653491,7.2822,137.36,137.34,0.05018417]
[1743122653994,7.33307266,137.37,137.34,7.33328417]
[1743122655989,7.33307266,137.37,137.34,0.05018417]
[1743122658591,7.33307266,137.37,137.34,7.33328417]
[1743122658889,7.33287266,137.37,137.34,7.33328417]
[1743122659090,7.33287266,137.37,137.34,0.05018417]
[1743122659294,0.05127266,137.37,137.34,0.05018417]
[1743122659488,7.2821,137.36,137.34,0.05018417]
[1743122660893,20.58938276,137.35,137.34,0.05018417]
[1743122662786,46.50938276,137.35,137.34,0.05018417]
[1743122664694,25.92,137.35,137.34,0.05018417]
[1743122665692,33.2027,137.35,137.34,0.05018417]
[1743122666293,25.92,137.35,137.34,0.05018417]
[1743122669596,7.2824,137.36,137.34,0.05018417]
[1743122670095,33.25307266,137.37,137.34,0.05018417]
[1743122670396,33.25307266,137.37,137.34,7.33338417]
[1743122670695,33.25287266,137.37,137.34,0.05018417]
[1743122670885,33.25287266,137.37,137.34,7.33308417]
[1743122671896,25.97127266,137.37,137.35,7.2826]
[1743122673095,25.97127266,137.37,137.36,7.2821]
[1743122673602,0.05127266,137.37,137.36,7.2821]
[1743122675302,0.05127266,137.37,137.35,7.2824]
[1743122676094,0.05127266,137.37,137.36,7.2821]
[1743122676299,0.05127266,137.37,137.36,20.58878276]
[1743122680398,0.05127266,137.37,137.35,3.619]
[1743122680998,7.33287266,137.37,137.35,3.619]
[1743122682799,0.05127266,137.37,137.35,3.619]
[1743122683599,0.05127266,137.37,137.35,10.9014]
[1743122684107,7.33287266,137.37,137.35,10.9014]
[1743122684411,0.05127266,137.37,137.35,10.9014]
[1743122685610,0.05127266,137.37,137.36,7.2821]
[1743122686205,1.26709024,137.47,137.36,39.22668276]
[1743122686398,50.86830642,137.48,137.43,13.30668276]
[1743122687104,39.22668276,137.48,137.43,13.30668276]
[1743122687309,20.10808276,137.5,137.43,13.30668276]
[1743122687511,0.04342368,137.47,137.45,13.30668276]
[1743122688111,0.04342368,137.47,137.46,7.2767]
[1743122688813,0.04342368,137.47,137.44,0.05342333]
[1743122691814,0.04342368,137.47,137.44,7.33132333]
[1743122695223,0.04342368,137.47,137.44,0.05342333]
[1743122695414,13.35010644,137.47,137.44,0.05342333]
[1743122696119,7.2771,137.46,137.44,0.05342333]
[1743122698616,7.2774,137.45,137.44,0.05342333]
[1743122703217,33.1771,137.46,137.44,0.05342333]
[1743122703421,25.9,137.46,137.44,0.05342333]
[1743122703931,7.2774,137.45,137.44,0.05342333]
[1743122707828,33.177,137.46,137.44,0.05342333]
[1743122714347,7.2774,137.45,137.44,0.05342333]
[1743122720346,33.1769,137.46,137.44,0.05342333]
[1743122722241,7.2774,137.45,137.44,0.05342333]
[1743122738259,7.2774,137.45,137.44,2.333e-05]
[1743122741967,7.2809,137.39,137.37,13.30668276]
[1743122742864,13.30668276,137.4,137.35,288.90760804]
[1743122743161,20.58778276,137.38,137.37,0.05021737]
[1743122743367,20.58778276,137.38,137.37,1.737e-05]
[1743122743757,13.30668276,137.38,137.33,30.24683366]
[1743122743964,13.30668276,137.35,137.33,30.24683366]
[1743122744366,7.2832,137.34,137.33,30.24683366]
[1743122746674,7.2837,137.33,137.32,0.05011777]
[1743122747765,20.59038276,137.33,137.32,1.777e-05]
[1743122749072,7.2837,137.33,137.32,1.777e-05]
[1743122760081,20.59038276,137.33,137.32,1.777e-05]
[1743122762184,46.51038276,137.33,137.32,1.777e-05]
[1743122763682,7.2864,137.28,137.27,3.6595]
[1743122764380,39.22668276,137.3,137.24,16.92378276]
[1743122764575,13.30668276,137.28,137.22,13.30668276]
[1743122764777,13.35850696,137.28,137.22,20.59618276]
[1743122764980,7.2877,137.26,137.24,0.05591936]
[1743122765478,13.35850696,137.28,137.24,0.05591936]
[1743122765674,7.2871,137.27,137.24,0.05591936]
[1743122768082,7.287,137.27,137.24,0.05591936]
[1743122769186,7.287,137.27,137.24,7.34431936]
[1743122769579,7.2874,137.26,137.24,7.34431936]
[1743122769874,7.2874,137.26,137.24,0.05591936]
[1743122770786,13.35850696,137.28,137.24,0.05591936]
[1743122772587,7.288,137.25,137.24,0.05591936]